[Event "98th Caplin Hastings Masters 2024-25"]
[Site "Hastings"]
[Date "2025.01.03"]
[Round "9.34"]
[White "Brewer, Callum D"]
[Black "Kim, Taewoo A"]
[Result "1-0"]
[ECO "B30"]
[WhiteElo "2151"]
[BlackElo "1863"]
[Annotator "RC"]
[PlyCount "105"]
[EventDate "2024.12.23"]
[EventType "swiss"]
[EventCountry "ENG"]
[SourceTitle "playchess.com"]
[Source "ChessBase"]
[SourceQuality "1"]
[TimeControl "5400+30"]

1. e4 {[%emt 0:00:08]} c5 {[%emt 0:00:10]} 2. Nf3 {[%emt 0:00:25]} Nc6 {[%emt 0:00:09]} 3. Bb5 {[%emt 0:00:05]} e6 {[%emt 0:00:11]} 4. Bxc6 {[%emt 0:00:14]} bxc6 {[%emt 0:00:08]} 5. d3 {[%emt 0:00:01]} Ne7 {[%emt 0:00:38]} 6. Nbd2 {[%emt 0:02:59]} Ng6 {[%emt 0:02:39]} 7. h4 {[%emt 0:00:21]} h5 {[%emt 0:00:44]} 8. e5 {[%emt 0:00:39]} Be7 {[%emt 0:02:55]} 9. Qe2 {[%emt 0:12:00]} f6 {[%emt 0:04:27]} 10. Nc4 {[%emt 0:15:46]} Ba6 {[%emt 0:11:25]} 11. Qe4 {[%emt 0:05:46]} Kf7 {[%emt 0:09:13]} 12. Rh3 {[%emt 0:16:05]} f5 {[%emt 0:07:40]} 13. Qe2 {[%emt 0:09:11]} Bxc4 {[%emt 0:07:29]} 14. dxc4 {[%emt 0:00:06]} Nxh4 {[%emt 0:06:02]} 15. Nxh4 {[%emt 0:04:16]} Bxh4 {[%emt 0:00:11]} 16. Be3 {[%emt 0:00:01]} Be7 {[%emt 0:08:08]} 17. O-O-O {[%emt 0:06:45]} Qc7 {[%emt 0:07:48]} 18. Rxh5 {[%emt 0:02:10]} g6 {[%emt 0:02:14]} 19. Rxh8 {[%emt 0:05:35]} Rxh8 {[%emt 0:00:04]} 20. f4 {[%emt 0:00:02]} Ke8 {[%emt 0:19:16]} 21. g4 {[%emt 0:01:32]} Kd8 {[%emt 0:02:15]} 22. gxf5 {[%emt 0:00:40]} gxf5 {[%emt 0:00:08]} 23. Qg2 {[%emt 0:17:13]} Kc8 {[%emt 0:00:45]} 24. Kb1 {[%emt 0:00:00]} Qd8 {[%emt 0:03:50]} 25. Rg1 {[%emt 0:00:00]} Rh4 {[%emt 0:03:10]} 26. Qg8 {[%emt 0:00:00]} Rh8 {[%emt 0:00:59]} 27. Qg7 {[%emt 0:00:00]} Qf8 {[%emt 0:00:25]} 28. a4 {[%emt 0:00:43]} Qxg7 {[%emt 0:00:51]} 29. Rxg7 {[%emt 0:00:01]} Rh3 {[%emt 0:00:28]} 30. Bd2 {[%emt 0:00:41]} Kd8 {[%emt 0:00:34]} 31. Rg8+ {[%emt 0:00:26]} Kc7 {[%emt 0:00:01]} 32. Ba5+ {[%emt 0:00:11]} Kb7 {[%emt 0:00:01]} 33. Rg7 {[%emt 0:00:13]} Ka6 {[%emt 0:00:33]} 34. Bd2 {[%emt 0:00:33]} Rh1+ {[%emt 0:00:19]} 35. Ka2 {[%emt 0:02:20]} Rd1 {[%emt 0:00:27]} 36. Rg2 {[%emt 0:00:45]} Bh4 {[%emt 0:00:54]} 37. Kb3 {[%emt 0:00:09]} Be1 {[%emt 0:01:07]} 38. Be3 {[%emt 0:00:26]} Kb6 {[%emt 0:00:21]} 39. Rg1 {[%emt 0:00:21]} Ra1 {[%emt 0:00:47]} 40. Bf2 {[%emt 0:00:31]} Bxf2 {[%emt 0:00:15]} 41. Rxa1 {[%emt 0:00:01]} a5 {[%emt 0:00:39]} 42. Kc3 {[%emt 0:00:43]} Be3 {[%emt 0:00:19]} 43. Rf1 {[%emt 0:00:04]} d5 {[%emt 0:00:47]} 44. exd6 {[%emt 0:00:14]} Bd4+ {[%emt 0:00:15]} 45. Kd3 {[%emt 0:00:10]} Kb7 {[%emt 0:00:18]} 46. Rh1 {[%emt 0:01:28]} e5 {[%emt 0:00:25]} 47. fxe5 {[%emt 0:00:27]} Bxe5 {[%emt 0:00:11]} 48. Rh7+ {[%emt 0:00:21]} Kc8 {[%emt 0:00:46]} 49. Rc7+ {[%emt 0:00:30]} Kb8 {[%emt 0:00:03]} 50. Rxc6 {[%emt 0:00:11]} Kb7 {[%emt 0:00:30]} 51. d7 {[%emt 0:00:38]} Bc7 {[%emt 0:00:26]} 52. Rxc5 {[%emt 0:00:02]} f4 {[%emt 0:00:41]} 53. Ke4 {[%emt 0:00:10]} 1-0

[Event "98th Caplin Hastings Masters 2024-25"]
[Site "Hastings"]
[Date "2025.01.03"]
[Round "9.35"]
[White "Buckland, Louis"]
[Black "Marusenko, Petr"]
[Result "0-1"]
[ECO "E63"]
[WhiteElo "1856"]
[BlackElo "2021"]
[Annotator "NA RC"]
[PlyCount "78"]
[EventDate "2024.12.23"]
[EventType "swiss"]
[EventCountry "ENG"]
[SourceTitle "playchess.com"]
[Source "ChessBase"]
[SourceQuality "1"]
[TimeControl "5400+30"]

1. d4 {[%emt 0:00:02]} Nf6 {[%emt 0:08:52]} 2. c4 {[%emt 0:00:05]} g6 {[%emt 0:00:04]} 3. Nf3 {[%emt 0:00:07]} Bg7 {[%emt 0:00:04]} 4. g3 {[%emt 0:00:09]} O-O {[%emt 0:00:04]} 5. Bg2 {[%emt 0:00:06]} d6 {[%emt 0:00:04]} 6. Nc3 {[%emt 0:00:04]} Nc6 {[%emt 0:00:03]} 7. d5 {[%emt 0:00:04]} Na5 {[%emt 0:00:06]} 8. b3 {[%emt 0:00:03]} c5 {[%emt 0:00:03]} 9. Bb2 {[%emt 0:00:04]} a6 {[%emt 0:00:08]} 10. O-O {[%emt 0:00:05]} Rb8 {[%emt 0:00:03]} 11. Nd2 {[%emt 0:00:06]} b5 {[%emt 0:00:08]} 12. Qc1 {[%emt 0:00:03]} Bh6 {[%emt 0:00:11]} 13. e3 {[%emt 0:00:06]} Ng4 {[%emt 0:00:23]} 14. Nd1 {[%emt 0:01:21]} f5 {[%emt 0:02:25]} 15. f4 {[%emt 0:08:32]} Bd7 {[%emt 0:06:39]} 16. e4 {[%emt 0:08:32]} bxc4 {[%emt 0:03:46]} 17. bxc4 {[%emt 0:00:25]} Ba4 {[%emt 0:00:32]} 18. Qc3 {[%emt 0:10:43]} Nf6 {[%emt 0:08:53]} 19. Rb1 {[%emt 0:09:06]} Bg7 {[%emt 0:09:01]} 20. exf5 {[%emt 0:06:06]} Bxd1 {[%emt 0:03:50]} 21. Rfxd1 {[%emt 0:02:32]} Rxb2 {[%emt 0:00:18]} 22. Qxb2 {[%emt 0:01:35]} Ng4 {[%emt 0:00:12]} 23. Qc1 {[%emt 0:10:42]} Bd4+ {[%emt 0:00:19]} 24. Kf1 {[%emt 0:00:03]} Ne3+ {[%emt 0:00:29]} 25. Ke2 {[%emt 0:00:13]} Nxg2 {[%emt 0:11:03]} 26. Nf1 {[%emt 0:04:07]} Qd7 {[%emt 0:09:59]} 27. Qc2 {[%emt 0:03:13]} Rxf5 {[%emt 0:04:35]} 28. Qe4 {[%emt 0:03:59]} Nxf4+ {[%emt 0:06:16]} 29. gxf4 {[%emt 0:00:59]} Be5 {[%emt 0:00:02]} 30. Ne3 {[%emt 0:11:21]} Rxf4 {[%emt 0:01:02]} 31. Qg2 {[%emt 0:00:19]} Qa4 {[%emt 0:00:43]} 32. Rb8+ {[%emt 0:01:52]} Kg7 {[%emt 0:00:12]} 33. Rc1 {[%emt 0:08:28]} Qxa2+ {[%emt 0:12:46]} 34. Rc2 {[%emt 0:00:37]} Qa3 {[%emt 0:00:02]} 35. Qg5 {[%emt 0:02:12]} Rf7 {[%emt 0:00:34]} 36. h4 {[%emt 0:04:27]} Nb3 {[%emt 0:00:14]} 37. h5 {[%emt 0:02:20]} Nd4+ {[%emt 0:01:41]} 38. Kd1 {[%emt 0:00:44]} Qd3+ {[%emt 0:00:34]} 39. Kc1 {[%emt 0:00:47]} Rf1+ {[%emt 0:00:48]} 0-1

[Event "98th Caplin Hastings Masters 2024-25"]
[Site "Hastings"]
[Date "2025.01.03"]
[Round "9.36"]
[White "Vaidyanathan, Sathya"]
[Black "White, Stuart A"]
[Result "0-1"]
[ECO "B23"]
[WhiteElo "1908"]
[BlackElo "2017"]
[Annotator "NA RC"]
[PlyCount "102"]
[EventDate "2024.12.23"]
[EventType "swiss"]
[EventCountry "ENG"]
[SourceTitle "playchess.com"]
[Source "ChessBase"]
[SourceQuality "1"]
[TimeControl "5400+30"]

1. e4 {[%emt 0:00:02]} c5 {[%emt 0:00:02]} 2. Nc3 {[%emt 0:00:04]} Nc6 {[%emt 0:00:02]} 3. Bb5 {[%emt 0:00:04]} Nd4 {[%emt 0:00:04]} 4. Nf3 {[%emt 0:00:02]} a6 {[%emt 0:00:05]} 5. Bd3 {[%emt 0:00:11]} g6 {[%emt 0:00:08]} 6. O-O {[%emt 0:01:18]} Bg7 {[%emt 0:00:26]} 7. Re1 {[%emt 0:00:40]} e6 {[%emt 0:00:26]} 8. b3 {[%emt 0:02:09]} Ne7 {[%emt 0:02:00]} 9. Bb2 {[%emt 0:00:37]} Nec6 {[%emt 0:01:21]} 10. Rb1 {[%emt 0:04:51]} O-O {[%emt 0:01:14]} 11. Nxd4 {[%emt 0:04:37]} cxd4 {[%emt 0:08:08]} 12. Ne2 {[%emt 0:01:51]} d5 {[%emt 0:00:06]} 13. c3 {[%emt 0:16:27]} Ne5 {[%emt 0:07:04]} 14. Nc1 {[%emt 0:16:16]} Nxd3 {[%emt 0:01:17]} 15. Nxd3 {[%emt 0:01:42]} dxe4 {[%emt 0:15:20]} 16. Rxe4 {[%emt 0:01:03]} Qd5 {[%emt 0:03:00]} 17. Re1 {[%emt 0:06:39]} e5 {[%emt 0:01:55]} 18. cxd4 {[%emt 0:07:04]} Bf5 {[%emt 0:07:26]} 19. Nb4 {[%emt 0:07:40]} Qa5 {[%emt 0:06:04]} 20. Nc2 {[%emt 0:01:54]} exd4 {[%emt 0:06:15]} 21. g4 {[%emt 0:10:21]} Bd3 {[%emt 0:04:24]} 22. Rc1 {[%emt 0:05:21]} Rad8 {[%emt 0:15:19]} 23. Qf3 {[%emt 0:04:20]} Qxd2 {[%emt 0:01:09]} 24. Red1 {[%emt 0:01:01]} Be2 {[%emt 0:01:54]} 25. Rxd2 {[%emt 0:03:12]} Bxf3 {[%emt 0:00:04]} 26. Bxd4 {[%emt 0:01:57]} Bxg4 {[%emt 0:01:32]} 27. Bxg7 {[%emt 0:01:25]} Kxg7 {[%emt 0:00:12]} 28. Rxd8 {[%emt 0:00:37]} Rxd8 {[%emt 0:00:05]} 29. Ne3 {[%emt 0:00:07]} Bf3 {[%emt 0:00:35]} 30. Rc2 {[%emt 0:00:55]} f5 {[%emt 0:02:17]} 31. h3 {[%emt 0:00:23]} f4 {[%emt 0:00:35]} 32. Ng2 {[%emt 0:00:13]} g5 {[%emt 0:01:09]} 33. Rc3 {[%emt 0:01:08]} Bc6 {[%emt 0:00:30]} 34. Rc2 {[%emt 0:00:29]} Kf6 {[%emt 0:01:33]} 35. Kh2 {[%emt 0:00:46]} Rd3 {[%emt 0:01:47]} 36. h4 {[%emt 0:00:29]} h6 {[%emt 0:00:09]} 37. hxg5+ {[%emt 0:00:13]} hxg5 {[%emt 0:00:04]} 38. Ne1 {[%emt 0:00:34]} Rd7 {[%emt 0:00:56]} 39. Ng2 {[%emt 0:00:31]} Kf5 {[%emt 0:00:26]} 40. Rc5+ {[%emt 0:00:39]} Rd5 {[%emt 0:00:28]} 41. Rc2 {[%emt 0:00:35]} Re5 {[%emt 0:00:29]} 42. Rd2 {[%emt 0:00:28]} Rc5 {[%emt 0:00:58]} 43. Ne1 {[%emt 0:00:33]} Rc3 {[%emt 0:01:11]} 44. Ng2 {[%emt 0:00:20]} Kg4 {[%emt 0:01:08]} 45. Rb2 {[%emt 0:00:39]} Rc1 {[%emt 0:01:31]} 46. Rd2 {[%emt 0:00:16]} Rf1 {[%emt 0:01:09]} 47. Rc2 {[%emt 0:00:24]} Kf3 {[%emt 0:01:37]} 48. Rc3+ {[%emt 0:00:51]} Kxf2 {[%emt 0:00:17]} 49. Rc2+ {[%emt 0:00:27]} Kf3 {[%emt 0:00:07]} 50. Rc5 {[%emt 0:00:31]} Kg4 {[%emt 0:00:29]} 51. Rc4 {[%emt 0:00:31]} Rf2 {[%emt 0:00:08]} 0-1

[Event "98th Caplin Hastings Masters 2024-25"]
[Site "Hastings"]
[Date "2025.01.03"]
[Round "9.37"]
[White "Swiatkowski, Dominik"]
[Black "Suez-Panama, Gilles"]
[Result "0-1"]
[ECO "C06"]
[WhiteElo "1744"]
[BlackElo "1979"]
[Annotator "NA RC"]
[PlyCount "86"]
[EventDate "2024.12.23"]
[EventType "swiss"]
[EventCountry "ENG"]
[SourceTitle "playchess.com"]
[Source "ChessBase"]
[SourceQuality "1"]
[TimeControl "5400+30"]

1. e4 {[%emt 0:00:02]} e6 {[%emt 0:04:32]} 2. d3 {[%emt 0:00:05]} d5 {[%emt 0:01:10]} 3. Nd2 {[%emt 0:00:04]} Nf6 {[%emt 0:00:13]} 4. Ngf3 {[%emt 0:00:07]} Bc5 {[%emt 0:00:28]} 5. e5 {[%emt 0:08:38]} Nfd7 {[%emt 0:02:06]} 6. d4 {[%emt 0:00:05]} Be7 {[%emt 0:00:34]} 7. Bd3 {[%emt 0:00:14]} c5 {[%emt 0:01:13]} 8. c3 {[%emt 0:00:05]} Nc6 {[%emt 0:00:33]} 9. O-O {[%emt 0:00:18]} a5 {[%emt 0:04:54]} 10. dxc5 {[%emt 0:32:27]} Ndxe5 {[%emt 0:06:34]} 11. Nxe5 {[%emt 0:05:29]} Nxe5 {[%emt 0:00:12]} 12. Bb5+ {[%emt 0:00:06]} Bd7 {[%emt 0:01:44]} 13. Bxd7+ {[%emt 0:01:54]} Qxd7 {[%emt 0:01:04]} 14. b4 {[%emt 0:00:17]} b6 {[%emt 0:03:35]} 15. cxb6 {[%emt 0:02:27]} axb4 {[%emt 0:02:42]} 16. cxb4 {[%emt 0:00:28]} Nd3 {[%emt 0:05:46]} 17. Qb3 {[%emt 0:03:43]} Nxb4 {[%emt 0:02:53]} 18. Ba3 {[%emt 0:01:40]} Ra4 {[%emt 0:06:55]} 19. Rfc1 {[%emt 0:03:55]} Na6 {[%emt 0:06:25]} 20. Rc8+ {[%emt 0:24:38]} Qxc8 {[%emt 0:05:53]} 21. Qxa4+ {[%emt 0:00:06]} Kd8 {[%emt 0:00:58]} 22. Nb3 {[%emt 0:12:41]} Qc4 {[%emt 0:06:39]} 23. Qa5 {[%emt 0:01:31]} Bxa3 {[%emt 0:02:32]} 24. b7+ {[%emt 0:00:50]} Ke7 {[%emt 0:04:20]} 25. Qxa3+ {[%emt 0:00:07]} Kf6 {[%emt 0:00:18]} 26. Qb2+ {[%emt 0:00:57]} e5 {[%emt 0:01:33]} 27. Na5 {[%emt 0:00:22]} Qc5 {[%emt 0:01:20]} 28. Rb1 {[%emt 0:00:38]} Nb8 {[%emt 0:03:37]} 29. Qb6+ {[%emt 0:00:26]} Qxb6 {[%emt 0:00:08]} 30. Rxb6+ {[%emt 0:00:02]} Kf5 {[%emt 0:00:20]} 31. Nc6 {[%emt 0:00:39]} Nxc6 {[%emt 0:00:47]} 32. Rxc6 {[%emt 0:00:01]} Rb8 {[%emt 0:00:09]} 33. a4 {[%emt 0:00:23]} Rxb7 {[%emt 0:00:08]} 34. g4+ {[%emt 0:00:35]} Kxg4 {[%emt 0:01:04]} 35. Rc5 {[%emt 0:00:01]} Kf3 {[%emt 0:00:28]} 36. Rc3+ {[%emt 0:00:12]} Ke4 {[%emt 0:00:58]} 37. a5 {[%emt 0:00:16]} Rb1+ {[%emt 0:00:20]} 38. Kg2 {[%emt 0:00:04]} Ra1 {[%emt 0:00:16]} 39. Rc7 {[%emt 0:00:11]} d4 {[%emt 0:03:43]} 40. Rxf7 {[%emt 0:00:00]} d3 {[%emt 0:00:24]} 41. Rd7 {[%emt 0:00:00]} g5 {[%emt 0:00:23]} 42. h3 {[%emt 0:00:17]} h5 {[%emt 0:00:16]} 43. Rd6 {[%emt 0:00:05]} Rxa5 {[%emt 0:00:13]} 0-1

[Event "98th Caplin Hastings Masters 2024-25"]
[Site "Hastings"]
[Date "2025.01.03"]
[Round "9.38"]
[White "Burrows, Martin P"]
[Black "Rastogi, Nayan Keats"]
[Result "1-0"]
[ECO "B86"]
[WhiteElo "2042"]
[BlackElo "1892"]
[Annotator "NA RC"]
[PlyCount "51"]
[EventDate "2024.12.23"]
[EventType "swiss"]
[EventCountry "ENG"]
[SourceTitle "playchess.com"]
[Source "ChessBase"]
[SourceQuality "1"]
[TimeControl "5400+30"]

1. e4 {[%emt 0:00:05]} c5 {[%emt 0:00:09]} 2. Nf3 {[%emt 0:00:13]} d6 {[%emt 0:00:03]} 3. d4 {[%emt 0:00:08]} cxd4 {[%emt 0:00:04]} 4. Nxd4 {[%emt 0:00:03]} Nf6 {[%emt 0:00:05]} 5. Nc3 {[%emt 0:00:05]} a6 {[%emt 0:00:04]} 6. Bc4 {[%emt 0:00:14]} e6 {[%emt 0:00:05]} 7. Bb3 {[%emt 0:00:30]} Nbd7 {[%emt 0:00:07]} 8. Bg5 {[%emt 0:00:37]} Nc5 {[%emt 0:00:35]} 9. f4 {[%emt 0:00:26]} Be7 {[%emt 0:01:57]} 10. Qe2 {[%emt 0:00:20]} h6 {[%emt 0:00:43]} 11. Bxf6 {[%emt 0:00:18]} Bxf6 {[%emt 0:00:20]} 12. O-O-O {[%emt 0:00:27]} Qc7 {[%emt 0:03:46]} 13. Rhe1 {[%emt 0:02:18]} O-O {[%emt 0:01:15]} 14. g4 {[%emt 0:00:40]} b5 {[%emt 0:15:16]} 15. g5 {[%emt 0:01:51]} hxg5 {[%emt 0:01:09]} 16. e5 {[%emt 0:00:25]} dxe5 {[%emt 0:01:47]} 17. fxe5 {[%emt 0:00:09]} Be7 {[%emt 0:00:16]} 18. h4 {[%emt 0:02:45]} gxh4 {[%emt 0:03:46]} 19. Rg1 {[%emt 0:07:09]} g6 {[%emt 0:02:28]} 20. Qh5 {[%emt 0:20:24]} Kg7 {[%emt 0:03:01]} 21. Nf5+ {[%emt 0:17:05]} exf5 {[%emt 0:01:20]} 22. Bxf7 {[%emt 0:00:17]} Bg5+ {[%emt 0:03:20]} 23. Rxg5 {[%emt 0:00:42]} Qxf7 {[%emt 0:03:02]} 24. Rdg1 {[%emt 0:00:48]} Rg8 {[%emt 0:03:47]} 25. Rxg6+ {[%emt 0:01:13]} Kf8 {[%emt 0:00:13]} 26. Qh6+ {[%emt 0:04:08]} 1-0

[Event "98th Caplin Hastings Masters 2024-25"]
[Site "Hastings"]
[Date "2025.01.03"]
[Round "9.39"]
[White "Lishoy Gengis Paratazham, Dildarav"]
[Black "Ruane, Brendan J"]
[Result "1-0"]
[ECO "B00"]
[WhiteElo "2037"]
[BlackElo "1869"]
[Annotator "NA RC"]
[PlyCount "93"]
[EventDate "2024.12.23"]
[EventType "swiss"]
[EventCountry "ENG"]
[SourceTitle "playchess.com"]
[Source "ChessBase"]
[SourceQuality "1"]
[TimeControl "5400+30"]

1. Nf3 {[%emt 0:00:01]} Nc6 {[%emt 0:00:20]} 2. e4 {[%emt 0:02:08]} d6 {[%emt 0:01:16]} 3. d4 {[%emt 0:01:07]} Nf6 {[%emt 0:00:13]} 4. Nc3 {[%emt 0:00:28]} g6 {[%emt 0:00:11]} 5. h3 {[%emt 0:00:55]} a6 {[%emt 0:00:16]} 6. Be3 {[%emt 0:01:56]} Bg7 {[%emt 0:00:46]} 7. Be2 {[%emt 0:02:28]} O-O {[%emt 0:00:51]} 8. O-O {[%emt 0:00:13]} b5 {[%emt 0:05:17]} 9. e5 {[%emt 0:07:35]} Nd7 {[%emt 0:03:13]} 10. e6 {[%emt 0:01:45]} fxe6 {[%emt 0:00:07]} 11. d5 {[%emt 0:00:13]} Nce5 {[%emt 0:02:08]} 12. dxe6 {[%emt 0:00:20]} Nc5 {[%emt 0:02:15]} 13. Bxc5 {[%emt 0:07:10]} dxc5 {[%emt 0:00:13]} 14. Qd5 {[%emt 0:00:13]} Qxd5 {[%emt 0:00:57]} 15. Nxd5 {[%emt 0:00:02]} Nc6 {[%emt 0:02:35]} 16. c3 {[%emt 0:08:03]} Ra7 {[%emt 0:03:17]} 17. Rfe1 {[%emt 0:02:41]} Bxe6 {[%emt 0:00:59]} 18. Rad1 {[%emt 0:00:19]} Bc8 {[%emt 0:04:28]} 19. Ng5 {[%emt 0:04:37]} e6 {[%emt 0:07:09]} 20. Ne3 {[%emt 0:00:10]} Bh6 {[%emt 0:01:51]} 21. Ne4 {[%emt 0:01:32]} Bxe3 {[%emt 0:00:24]} 22. fxe3 {[%emt 0:00:02]} Rf5 {[%emt 0:01:31]} 23. Bg4 {[%emt 0:02:40]} Re5 {[%emt 0:00:38]} 24. Bf3 {[%emt 0:00:09]} Kg7 {[%emt 0:04:17]} 25. Nf2 {[%emt 0:04:44]} Ne7 {[%emt 0:01:33]} 26. Nd3 {[%emt 0:07:47]} Rf5 {[%emt 0:01:29]} 27. e4 {[%emt 0:00:11]} Rf8 {[%emt 0:01:29]} 28. Nxc5 {[%emt 0:00:07]} e5 {[%emt 0:00:41]} 29. Bg4 {[%emt 0:00:21]} Bxg4 {[%emt 0:02:28]} 30. hxg4 {[%emt 0:00:02]} Rf6 {[%emt 0:00:53]} 31. g5 {[%emt 0:16:14]} Rc6 {[%emt 0:00:10]} 32. b4 {[%emt 0:01:54]} a5 {[%emt 0:00:06]} 33. Rd7 {[%emt 0:06:49]} Kf8 {[%emt 0:00:47]} 34. Rd8+ {[%emt 0:01:44]} Kg7 {[%emt 0:02:29]} 35. Red1 {[%emt 0:02:09]} Rd6 {[%emt 0:01:13]} 36. R1xd6 {[%emt 0:01:06]} cxd6 {[%emt 0:00:07]} 37. Rxd6 {[%emt 0:00:05]} axb4 {[%emt 0:00:15]} 38. cxb4 {[%emt 0:00:01]} Rxa2 {[%emt 0:01:24]} 39. Rb6 {[%emt 0:00:05]} Rb2 {[%emt 0:01:08]} 40. Rxb5 {[%emt 0:00:52]} Nc6 {[%emt 0:02:27]} 41. Rb7+ {[%emt 0:00:06]} Kf8 {[%emt 0:00:32]} 42. b5 {[%emt 0:00:57]} Nd8 {[%emt 0:01:05]} 43. Rxh7 {[%emt 0:07:46]} Rxb5 {[%emt 0:00:37]} 44. Nd7+ {[%emt 0:00:14]} Ke8 {[%emt 0:00:43]} 45. Nf6+ {[%emt 0:00:04]} Kf8 {[%emt 0:00:22]} 46. Rh8+ {[%emt 0:00:05]} Ke7 {[%emt 0:00:20]} 47. Re8+ {[%emt 0:00:03]} 1-0

[Event "98th Caplin Hastings Masters 2024-25"]
[Site "Hastings"]
[Date "2025.01.03"]
[Round "9.40"]
[White "Zhang, Kendrick Botong"]
[Black "Chapman, Luke"]
[Result "1-0"]
[ECO "B32"]
[WhiteElo "1979"]
[BlackElo "1706"]
[Annotator "NA RC"]
[PlyCount "133"]
[EventDate "2024.12.23"]
[EventType "swiss"]
[EventCountry "ENG"]
[SourceTitle "playchess.com"]
[Source "ChessBase"]
[SourceQuality "1"]
[TimeControl "5400+30"]

1. e4 {[%emt 0:00:23]} c5 {[%emt 0:00:03]} 2. Nf3 {[%emt 0:00:20]} Nc6 {[%emt 0:00:04]} 3. d4 {[%emt 0:00:20]} cxd4 {[%emt 0:00:15]} 4. Nxd4 {[%emt 0:00:17]} e5 {[%emt 0:00:05]} 5. Nb5 {[%emt 0:00:27]} d6 {[%emt 0:00:06]} 6. N1c3 {[%emt 0:00:28]} a6 {[%emt 0:00:05]} 7. Na3 {[%emt 0:00:11]} Be7 {[%emt 0:00:04]} 8. Nc4 {[%emt 0:02:21]} b5 {[%emt 0:00:48]} 9. Ne3 {[%emt 0:00:15]} Nf6 {[%emt 0:00:06]} 10. g3 {[%emt 0:14:40]} h5 {[%emt 0:00:16]} 11. Bg2 {[%emt 0:10:41]} h4 {[%emt 0:00:14]} 12. Ncd5 {[%emt 0:03:20]} h3 {[%emt 0:02:40]} 13. Bf3 {[%emt 0:02:44]} O-O {[%emt 0:07:40]} 14. c3 {[%emt 0:03:44]} Be6 {[%emt 0:03:58]} 15. O-O {[%emt 0:01:41]} Rb8 {[%emt 0:04:52]} 16. Nxf6+ {[%emt 0:11:37]} Bxf6 {[%emt 0:00:42]} 17. Bg4 {[%emt 0:04:20]} Qd7 {[%emt 0:07:08]} 18. f4 {[%emt 0:04:01]} exf4 {[%emt 0:02:45]} 19. gxf4 {[%emt 0:00:15]} Bxg4 {[%emt 0:10:27]} 20. Nxg4 {[%emt 0:00:22]} Bd8 {[%emt 0:00:59]} 21. Qf3 {[%emt 0:01:58]} Bb6+ {[%emt 0:00:51]} 22. Be3 {[%emt 0:04:59]} Bxe3+ {[%emt 0:04:14]} 23. Nxe3 {[%emt 0:00:10]} b4 {[%emt 0:01:25]} 24. Nf5 {[%emt 0:03:39]} Ne7 {[%emt 0:04:36]} 25. Nxe7+ {[%emt 0:05:06]} Qxe7 {[%emt 0:00:29]} 26. c4 {[%emt 0:01:12]} Rfe8 {[%emt 0:02:10]} 27. Rae1 {[%emt 0:00:34]} Qf6 {[%emt 0:00:55]} 28. b3 {[%emt 0:00:55]} Qd4+ {[%emt 0:03:54]} 29. Kh1 {[%emt 0:02:30]} a5 {[%emt 0:43:09]} 30. Re3 {[%emt 0:03:46]} f5 {[%emt 0:00:00]} 31. Rd1 {[%emt 0:07:14]} fxe4 {[%emt 0:00:00]} 32. Qe2 {[%emt 0:00:07]} Qf6 {[%emt 0:00:00]} 33. Rxe4 {[%emt 0:00:54]} Qg6 {[%emt 0:00:00]} 34. Re1 {[%emt 0:01:43]} Rxe4 {[%emt 0:00:00]} 35. Qxe4 {[%emt 0:00:06]} Qxe4+ {[%emt 0:00:00]} 36. Rxe4 {[%emt 0:00:06]} d5 {[%emt 0:00:00]} 37. cxd5 {[%emt 0:01:37]} Rc8 {[%emt 0:00:00]} 38. Kg1 {[%emt 0:02:45]} Rc2 {[%emt 0:00:00]} 39. d6 {[%emt 0:02:30]} Rd2 {[%emt 0:00:00]} 40. Re5 {[%emt 0:02:41]} Rxd6 {[%emt 0:00:00]} 41. Rxa5 {[%emt 0:00:24]} Rd2 {[%emt 0:00:00]} 42. Rh5 {[%emt 0:02:20]} Rg2+ {[%emt 0:00:00]} 43. Kh1 {[%emt 0:00:12]} Rxa2 {[%emt 0:00:00]} 44. Rxh3 {[%emt 0:00:05]} Rc2 {[%emt 0:00:00]} 45. Kg1 {[%emt 0:00:50]} Rc3 {[%emt 0:00:00]} 46. Kg2 {[%emt 0:00:22]} Kf7 {[%emt 0:00:00]} 47. Rf3 {[%emt 0:00:56]} Ke6 {[%emt 0:00:00]} 48. Kf2 {[%emt 0:00:19]} Rc2+ {[%emt 0:00:00]} 49. Kg3 {[%emt 0:01:04]} Rc3 {[%emt 0:00:00]} 50. Kg4 {[%emt 0:01:04]} Kd5 {[%emt 0:00:00]} 51. h4 {[%emt 0:00:38]} Kd4 {[%emt 0:00:00]} 52. h5 {[%emt 0:00:27]} Rc1 {[%emt 0:00:00]} 53. f5 {[%emt 0:00:46]} Rg1+ {[%emt 0:00:00]} 54. Rg3 {[%emt 0:00:25]} Rf1 {[%emt 0:00:00]} 55. Kg5 {[%emt 0:00:21]} Rc1 {[%emt 0:00:00]} 56. Kg6 {[%emt 0:00:44]} Rc3 {[%emt 0:00:00]} 57. Rg4+ {[%emt 0:00:05]} Ke5 {[%emt 0:00:00]} 58. Kxg7 {[%emt 0:00:56]} Kxf5 {[%emt 0:00:00]} 59. Rxb4 {[%emt 0:00:11]} Rc7+ {[%emt 0:00:00]} 60. Kf8 {[%emt 0:00:43]} Rh7 {[%emt 0:00:00]} 61. Rb6 {[%emt 0:00:36]} Rh8+ {[%emt 0:00:00]} 62. Kg7 {[%emt 0:00:28]} Ra8 {[%emt 0:00:00]} 63. h6 {[%emt 0:00:09]} Ra7+ {[%emt 0:00:00]} 64. Kf8 {[%emt 0:00:08]} Kg5 {[%emt 0:00:00]} 65. b4 {[%emt 0:00:28]} Ra8+ {[%emt 0:00:00]} 66. Ke7 {[%emt 0:00:11]} Ra7+ {[%emt 0:00:00]} 67. Kd8 {[%emt 0:00:08]} 1-0

[Event "98th Caplin Hastings Masters 2024-25"]
[Site "Hastings"]
[Date "2025.01.03"]
[Round "9.42"]
[White "Pick, Freddie"]
[Black "Ashton, Alannah"]
[Result "1-0"]
[ECO "B78"]
[WhiteElo "1874"]
[BlackElo "1953"]
[Annotator "NA RC"]
[PlyCount "69"]
[EventDate "2024.12.23"]
[EventType "swiss"]
[EventCountry "ENG"]
[SourceTitle "playchess.com"]
[Source "ChessBase"]
[SourceQuality "1"]
[TimeControl "5400+30"]

1. e4 {[%emt 0:00:02]} c5 {[%emt 0:00:03]} 2. Nf3 {[%emt 0:00:04]} d6 {[%emt 0:00:03]} 3. d4 {[%emt 0:00:05]} cxd4 {[%emt 0:00:01]} 4. Nxd4 {[%emt 0:00:04]} Nf6 {[%emt 0:00:04]} 5. Nc3 {[%emt 0:00:04]} g6 {[%emt 0:00:06]} 6. Be3 {[%emt 0:00:03]} Bg7 {[%emt 0:00:03]} 7. f3 {[%emt 0:00:07]} O-O {[%emt 0:00:04]} 8. Qd2 {[%emt 0:00:03]} Nc6 {[%emt 0:00:03]} 9. Bc4 {[%emt 0:00:03]} Bd7 {[%emt 0:00:04]} 10. O-O-O {[%emt 0:00:04]} Ne5 {[%emt 0:00:07]} 11. Bb3 {[%emt 0:00:03]} b5 {[%emt 0:00:09]} 12. Nd5 {[%emt 0:08:41]} a5 {[%emt 0:06:53]} 13. Nxf6+ {[%emt 0:01:16]} Bxf6 {[%emt 0:00:13]} 14. h4 {[%emt 0:03:06]} a4 {[%emt 0:10:22]} 15. Bd5 {[%emt 0:00:06]} Rb8 {[%emt 0:00:43]} 16. a3 {[%emt 0:05:41]} e6 {[%emt 0:01:35]} 17. Ba2 {[%emt 0:00:18]} Qc7 {[%emt 0:12:12]} 18. Kb1 {[%emt 0:14:45]} b4 {[%emt 0:29:19]} 19. axb4 {[%emt 0:03:36]} a3 {[%emt 0:01:07]} 20. h5 {[%emt 0:14:16]} Nc4 {[%emt 0:07:08]} 21. Bxc4 {[%emt 0:06:04]} Qxc4 {[%emt 0:00:06]} 22. bxa3 {[%emt 0:01:27]} Ra8 {[%emt 0:13:19]} 23. Qd3 {[%emt 0:02:32]} Qc7 {[%emt 0:01:44]} 24. Bc1 {[%emt 0:02:50]} Ba4 {[%emt 0:03:08]} 25. Bb2 {[%emt 0:02:01]} Rfc8 {[%emt 0:06:12]} 26. Nb3 {[%emt 0:03:40]} Bxb2 {[%emt 0:00:10]} 27. Kxb2 {[%emt 0:00:04]} Ra6 {[%emt 0:03:23]} 28. Nc5 {[%emt 0:05:07]} dxc5 {[%emt 0:02:58]} 29. Qxa6 {[%emt 0:00:14]} cxb4 {[%emt 0:03:07]} 30. Qxa4 {[%emt 0:01:31]} Qc3+ {[%emt 0:00:08]} 31. Ka2 {[%emt 0:01:05]} bxa3 {[%emt 0:00:35]} 32. Qb3 {[%emt 0:01:31]} Qc6 {[%emt 0:00:38]} 33. Rd2 {[%emt 0:01:58]} Ra8 {[%emt 0:00:29]} 34. Rhd1 {[%emt 0:00:09]} Qc7 {[%emt 0:00:13]} 35. h6 {[%emt 0:00:13]} 1-0